Workbook

Sheet インバート部
A1: アーチカルバートの流量計算
B2: インバート部
G5: 水深が決まっている場合
H6: 条件
H7: R | I7: 2
H8: 水深 | I8: 0.063
H10: R-水深 | I10: =I7-I8 -> 1.937
H11: 水面幅 | I11: {R2-(R-水深)2}1/2×2＝
H12: ="=｛ "&FIXED(I7,3)&"^2 －（ "&FIXED(I7,3)&" － "&FIXED(I8,3)&" ）^2 ｝^0.5 × 2 ＝" -> =｛ 2.000^2 －（ 2.000 － 0.063 ）^2 ｝^0.5 × 2 ＝ | M12: =(I7^2-I10^2)^0.5*2 -> 0.9960542154 | N12: m
H14: θ＝arccos｛（R-水深）／R ｝× 2 ＝
H15: ="= arccos｛（"&FIXED(I7,3)&"-"&FIXED(I8,3)&"）／ "&FIXED(I7,3)&" ｝× 2 ＝" -> = arccos｛（2.000-0.063）／ 2.000 ｝× 2 ＝ | M15: =ACOS(I10/I7)*2 -> 0.5033231834 | N15: ラジアン
H17: 潤辺長＝R×θ（ラジアン）
H18: ="＝ "&FIXED(I7,3)&" × "&FIXED(M15,5)&" ＝" -> ＝ 2.000 × 0.50332 ＝ | M18: =I7*M15 -> 1.006646367 | N18: m
G20: 水面幅が決まっている場合
H21: 条件
H22: R | I22: 2
H23: 水面幅 | I23: 1
H25: θ＝arcsin ｛（水面幅 ／ 2）／ R｝ ×2
H26: ="= arcsin {（"&FIXED(I23,3)&" / 2 ) / "&FIXED(I22,3)&" ｝ × 2 ＝" -> = arcsin {（1.000 / 2 ) / 2.000 ｝ × 2 ＝ | M26: =ASIN(I23/2/I22)*2 -> 0.5053605103 | N26: ラジアン
H28: 潤辺長＝R×θ（ラジアン）
H29: ="＝ "&FIXED(I22,3)&" × "&FIXED(M26,5)&" ＝" -> ＝ 2.000 × 0.50536 ＝ | M29: =I22*M26 -> 1.010721021 | N29: m
H31: 水深＝R－R cos（θ／2）
H32: ="＝"&FIXED(I22,3)&" － "&FIXED(I22,3)&" × cos ( "&FIXED(M26,5)&" ／ 2 ） ＝" -> ＝2.000 － 2.000 × cos ( 0.50536 ／ 2 ） ＝ | M32: =I22-I22*COS(M26/2) -> 0.0635083269 | N32: m
G34: 通水断面積
G35: ＝ | H35: 潤辺長 × R ／ 2 － 水面幅 ×（ R － 水深 ）／ 2
G36: ="="&FIXED(M29,3)&" × "&FIXED(I22,3)&" ／ 2 － "&FIXED(I23,3)&" ×（"&FIXED(I22,3)&" － "&FIXED(M32,3)&"）／ 2 ＝" -> =1.011 × 2.000 ／ 2 － 1.000 ×（2.000 － 0.064）／ 2 ＝ | M36: =M29*I22/2-I23*(I22-M32)/2 -> 0.04247518402 | N36: m2

Sheet 矩形部
A1: アーチカルバートの流量計算
B2: 矩形部
C21: 潤辺長 | E21: （h－h1）×2
C22: 通水断面積 | E22: （h－h1）×B

Sheet アーチ部
A1: アーチカルバートの流量計算
B2: アーチ部
G3: H | H3: 1 | I3: m
G4: B | H4: 1 | I4: m
G5: 水深 h | H5: 0.9 | I5: m
G7: 満流の場合のアーチ部
H9: 条件
H10: R | I10: 0.5
H12: 潤辺長＝R×θ（ラジアン）
H13: ="＝ "&FIXED(I10,3)&" × π ＝" -> ＝ 0.500 × π ＝ | M13: =I10*PI() -> 1.570796327 | N13: m
H15: 通水断面積＝R 2 × π ／ 2
H16: ="＝"&FIXED(I10,3)&"^2 × π ／ 2 ＝" -> ＝0.500^2 × π ／ 2 ＝ | M16: =I10^2*PI()/2 -> 0.3926990817 | N16: m2
G18: 満流でない場合の控除
H20: 空隙 δh | I20: H - h = | J20: =H3-H5 -> 0.1 | K20: m
H22: R-δh= | I22: =I10-J20 -> 0.4
H23: 水面幅 | I23: {R2-(R-δh)2}1/2×2＝
H24: ="=｛ "&FIXED(I10,3)&"^2 －（ "&FIXED(I10,3)&" － "&FIXED(J20,3)&" ）^2 ｝^0.5 × 2 ＝" -> =｛ 0.500^2 －（ 0.500 － 0.100 ）^2 ｝^0.5 × 2 ＝ | M24: =(I10^2-I22^2)^0.5*2 -> 0.6 | N24: m
H26: θ＝arccos｛（R-δh）／R ｝× 2 ＝
H27: ="= arccos｛（"&FIXED(I10,3)&"-"&FIXED(J20,3)&"）／ "&FIXED(I10,3)&" ｝× 2 ＝" -> = arccos｛（0.500-0.100）／ 0.500 ｝× 2 ＝ | M27: =ACOS(I22/I10)*2 -> 1.287002218 | N27: ラジアン
H29: 控除潤辺長＝R×θ（ラジアン）
H30: ="＝ "&FIXED(I10,3)&" × "&FIXED(M27,5)&" ＝" -> ＝ 0.500 × 1.28700 ＝ | M30: =I10*M27 -> 0.6435011088 | N30: m
H32: 控除通水断面積＝控除潤辺長 × R ／ 2 － 水面幅 ×（ R － δh ）／ 2
H33: ="="&FIXED(M30,3)&" × "&FIXED(I10,3)&" ／ 2 － "&FIXED(M24,3)&" ×（"&FIXED(I10,3)&" － "&FIXED(J20,3)&"）／ 2 ＝" -> =0.644 × 0.500 ／ 2 － 0.600 ×（0.500 － 0.100）／ 2 ＝
M34: =M30*I10/2-M24*(I10-J20)/2 -> 0.0408752772 | N34: m2
L36: ="水深に対するアーチ部の潤辺長＝満流の潤辺長-控除潤辺長＝"&FIXED(M13,3)&"－"&FIXED(M30,3)&"＝" -> 水深に対するアーチ部の潤辺長＝満流の潤辺長-控除潤辺長＝1.571－0.644＝ | M36: =M13-M30 -> 0.927295218 | N36: m
L37: ="水深に対するアーチ部の通水断面積＝満流の通水断面積-控除通水断面積＝"&FIXED(M16,3)&"－"&FIXED(M34,3)&"＝" -> 水深に対するアーチ部の通水断面積＝満流の通水断面積-控除通水断面積＝0.393－0.041＝ | M37: =M16-M34 -> 0.3518238045 | N37: m2

Sheet 流量計算書
A1: アーチカルバートの流量計算書
A3: 1. 流出量の計算（合理式）
B5: 流出量 Q ＝ 1／360 × Rt × Σ（ f × A ）
B6: Q ： | C6: 流出量（m3/Sec） | E6: f ： | F6: 流出係数
B7: Rt： | C7: 降雨強度 | E7: A ： | F7: 流域面積 (ha)
B9: Rt= | C9: 120 | D9: mm/hr
C11: 番 号 | D11: Ａ | E11: ｆ | F11: Ａ×ｆ | G11: 摘 要
C12: 1 | D12: 10 | E12: 0.6 | F12: =ROUND(D12*E12,3) -> 6
C13: 2 | F13: =ROUND(D13*E13,3) -> 0
C14: 3 | F14: =ROUND(D14*E14,3) -> 0
C15: 合 計 | D15: =SUM(D12:D14) -> 10 | F15: =SUM(F12:F14) -> 6
B17: =" Q ＝ 1/360 × Rt × Σ(A×f) ＝ 1 ／ 360 × "&FIXED(降雨強度,0)&" × "&FIXED(ΣAf,3) -> Q ＝ 1/360 × Rt × Σ(A×f) ＝ 1 ／ 360 × 120 × 6.000
G18: ＝ | H18: =ROUND(1/360*降雨強度*ΣAf,3) -> 2 | I18: m3／Sec
B20: 設計流出量 | D20: 割増率 | E20: 1.2
B21: =" Q1＝ Q × 割増率 ＝ "&FIXED(流出量,3)&" × "&FIXED(割増率,1) -> Q1＝ Q × 割増率 ＝ 2.000 × 1.2 | G21: ＝ | H21: =ROUND(流出量*割増率,3) -> 2.4 | I21: m3／Sec
A23: 2. 形状寸法
L24: データー入力セルです
G25: 躯体幅 B ： | H25: 2.5 | I25: m
G26: 躯体高 H ： | H26: 2.5 | I26: m | L26: 下の実流量水深計算ボタンをクリックすると水深は自動で入ります。入力することもできます。
G27: インバート R1 ： | H27: 5 | I27: m
G28: アーチ R2=B/2 ： | H28: =H25/2 -> 1.25 | I28: m
G30: 水深 h ＝ | H30: 0.509 | I30: m | L30: 水深を㎜単位で設定するためQ1＝Q2とならないことがあります。
G31: 勾配 I ＝ | H31: 0.003 | L31: この場合Q1＜Q2となるように㎜単位で調整しています。
G32: 粗度係数 n = | H32: 0.013 | L32: 満流でもQ1＜Q2とならない場合は「断面不足」と表示されます。
K34: ="躯体幅B="&FIXED(H25,3)&" m" -> 躯体幅B=2.500 m
B35: h1＝R1－R1 cos（θ1／2） | K35: ="躯体高H="&FIXED(H26,3)&" m" -> 躯体高H=2.500 m
B36: θ＝arcsin ｛（B ／ 2）／ R1｝ ×2 ＝ | H36: =ASIN(H25/2/H27)*2 -> 0.5053605103 | I36: rad | K36: ="="&FIXED(H27,3)&" m" -> =5.000 m
B37: ="h1＝"&FIXED(H27,3)&" － "&FIXED(H27,3)&" × cos ( "&FIXED(H36,5)&" ／ 2 ） ＝" -> h1＝5.000 － 5.000 × cos ( 0.50536 ／ 2 ） ＝ | H37: =ROUND(H27-H27*COS(H36/2),3) -> 0.159 | I37: m | K37: ="="&FIXED(H28,3)&" m" -> =1.250 m
B38: ="h2 = H - h1 - h3 = "&FIXED(H26,3)&" － "&FIXED(H37,3)&" － "&FIXED(H39,3)&" ＝" -> h2 = H - h1 - h3 = 2.500 － 0.159 － 1.250 ＝ | H38: =H26-H37-H39 -> 1.091 | I38: m | K38: ="水深h="&FIXED(H30,3)&" m" -> 水深h=0.509 m
B39: h3 = R2 = | H39: =H28 -> 1.25 | I39: m
A41: 3. インバート部の潤辺長および通水断面積
B43: 水面幅b ＝ {R1 2-(R1-水深h) 2} 1/2 × 2 ただし b≦B
B44: ="b' =｛ "&FIXED(H27,3)&"^2 －（ "&FIXED(H27,3)&" － "&FIXED(H30,3)&" ）^2 ｝^0.5 × 2 ＝" -> b' =｛ 5.000^2 －（ 5.000 － 0.509 ）^2 ｝^0.5 × 2 ＝ | H44: =(H27^2-(H27-H30)^2)^0.5*2 -> 4.395870335 | I44: m
G45: =IF(H44<=H25,"b'≦ B b=","b'＞B b=") -> b'＞B b= | H45: =IF(H44<=H25,H44,H25) -> 2.5 | I45: m
B46: θ1＝arcsin ｛（水面幅b ／ 2）／ R1 ｝ ×2
B47: ="= arcsin {（"&FIXED(H45,3)&" / 2 ) / "&FIXED(H27,3)&" ｝ × 2 ＝" -> = arcsin {（2.500 / 2 ) / 5.000 ｝ × 2 ＝ | H47: =ASIN(H45/2/H27)*2 -> 0.5053605103 | I47: rad
B48: ="潤辺長 s1 ＝ R1 × θ1（rad）＝"&FIXED(H27,3)&" × "&FIXED(H47,5)&" ＝" -> 潤辺長 s1 ＝ R1 × θ1（rad）＝5.000 × 0.50536 ＝ | H48: =ROUND(H27*H47,3) -> 2.527 | I48: m
B49: 通水断面積a1=潤辺長s1 × R1 ／ 2 － 水面幅b ×（ R1 － 水深h0 ）／ 2
B50: ただしインバート部の計算最大水深はh1 | G50: =IF(H30>=H37,"h≧h1 h0=h1=","h<h1 h0=h=") -> h≧h1 h0=h1= | H50: =IF(H30>=H37,H37,H30) -> 0.159 | I50: m
B51: ="a1 = "&FIXED(H48,3)&" × "&FIXED(H27,3)&" ／ 2 － "&FIXED(H45,3)&" ×（"&FIXED(H27,3)&" － "&FIXED(H50,3)&"）／ 2" -> a1 = 2.527 × 5.000 ／ 2 － 2.500 ×（5.000 － 0.159）／ 2
G52: ＝ | H52: =ROUND(H48*H27/2-H45*(H27-H50)/2,3) -> 0.266 | I52: m2
A54: 4. 矩形部の潤辺長および通水断面積
B56: 矩形部の水深 h0_2
C57: h1≧h の場合 h0_2=0
C58: h1<h≦h1+h2 の場合 h0_2=h-h1
C59: h1+h2<h の場合 h0_2=h2
C60: ="h - h1 = "&FIXED(H30,3)&" - "&FIXED(H37,3)&" ＝" -> h - h1 = 0.509 - 0.159 ＝ | F60: =H30-H37 -> 0.35
E61: =IF(H37>=H30,"h1≧h ∴ h0_2＝",IF(F60>H38,"h1+h2<h ∴ h0_2=","h1<h≦h1+h2 ∴ h0_2=")) -> h1<h≦h1+h2 ∴ h0_2= | F61: =IF(H37>=H30,0,IF(F60>H38,H38,H30-H37)) -> 0.35
B62: ="潤辺長s2＝h0_2 × 2 ＝ "&FIXED(F61,3)&" × 2 ＝" -> 潤辺長s2＝h0_2 × 2 ＝ 0.350 × 2 ＝ | H62: =ROUND(F61*2,3) -> 0.7 | I62: m
B63: ="通水断面積a2＝h0_2 × B ＝ "&FIXED(F61,3)&" × "&FIXED(H25,3)&" ＝" -> 通水断面積a2＝h0_2 × B ＝ 0.350 × 2.500 ＝ | H63: =ROUND(F61*H25,3) -> 0.875 | I63: m2
A65: 5. アーチ部の潤辺長および通水断面積
B67: 満流の場合のアーチ部潤辺長および通水断面積
B68: =" 潤辺長s3_1＝R2×θ（rad）＝ "&FIXED(H28,3)&" × π ＝" -> 潤辺長s3_1＝R2×θ（rad）＝ 1.250 × π ＝ | H68: =ROUND(H28*PI(),3) -> 3.927 | I68: m
B69: =" 通水断面積a3_1＝R2^2 × π ／ 2＝"&FIXED(H28,3)&"^2 × π ／ 2 ＝" -> 通水断面積a3_1＝R2^2 × π ／ 2＝1.250^2 × π ／ 2 ＝
H70: =ROUND(H28^2*PI()/2,3) -> 2.454 | I70: m2
B72: 満流でない場合の控除値
C73: 空隙高 δh = | D73: H - h = | E73: =IF(H26-H30<=H39,H26-H30,H39) -> 1.25 | F73: m | G73: δh≦h3
D74: R2-δh= | E74: =H28-E73 -> 0 | F74: m
C75: 水面幅 b3= | D75: {R22-(R2-δh)2}1/2×2
G76: ="=｛ "&FIXED(H28,3)&"^2 －（ "&FIXED(H28,3)&" － "&FIXED(E73,3)&" ）^2 ｝^0.5 × 2 ＝" -> =｛ 1.250^2 －（ 1.250 － 1.250 ）^2 ｝^0.5 × 2 ＝ | H76: =ROUND((H28^2-E74^2)^0.5*2,3) -> 2.5 | I76: m
C77: θ3＝arccos｛（R2-δh）／R2 ｝× 2
G78: ="= arccos｛（"&FIXED(H28,3)&"-"&FIXED(E73,3)&"）／ "&FIXED(H28,3)&" ｝× 2 ＝" -> = arccos｛（1.250-1.250）／ 1.250 ｝× 2 ＝ | H78: =ACOS(E74/H28)*2 -> 3.141592654 | I78: rad
C79: 控除潤辺長s3_2＝R2×θ3（rad）
G80: ="＝ "&FIXED(H28,3)&" × "&FIXED(H78,5)&" ＝" -> ＝ 1.250 × 3.14159 ＝ | H80: =ROUND(H28*H78,3) -> 3.927 | I80: m
C81: 控除通水断面積a3_2
C82: = 控除潤辺長s3_2 × R2 / 2 - 水面幅b3 ×( R2 - δh )/ 2
C83: ="="&FIXED(H80,3)&" × "&FIXED(H28,3)&" ／ 2 － "&FIXED(H76,3)&" ×（"&FIXED(H28,3)&" － "&FIXED(E73,3)&"）／ 2 ＝" -> =3.927 × 1.250 ／ 2 － 2.500 ×（1.250 － 1.250）／ 2 ＝
H84: =ROUND(H80*H28/2-H76*(H28-E73)/2,3) -> 2.454 | I84: m2
B85: 水深に対するアーチ部の潤辺長s3
E86: = 満流の潤辺長s3_1 － 控除潤辺長s3_2 | G86: ="＝"&FIXED(H68,3)&"－"&FIXED(H80,3)&"＝" -> ＝3.927－3.927＝ | H86: =ROUND(H68-H80,3) -> 0 | I86: m
B88: 水深に対するアーチ部の通水断面積a3
C89: ＝ 満流の通水断面積a3_1 － 控除通水断面積a3_2
G90: ="＝ "&FIXED(H70,3)&"－"&FIXED(H84,3)&"＝" -> ＝ 2.454－2.454＝ | H90: =ROUND(H70-H84,3) -> 0 | I90: m2
A92: 6. アーチカルバートの流量計算（マニング式による）
B94: 通水断面 | C94: =" a ＝ a1 ＋ a2 ＋ a3 ＝ "&FIXED(H52,3)&" ＋ "&FIXED(H63,3)&" ＋ "&FIXED(H90,3)&" ＝" -> a ＝ a1 ＋ a2 ＋ a3 ＝ 0.266 ＋ 0.875 ＋ 0.000 ＝
H95: =H52+H63+H90 -> 1.141 | I95: m2
B97: 潤辺 | C97: =" s ＝ s1 ＋ s2 ＋ s3 ＝ "&FIXED(H48,3)&" ＋ "&FIXED(H62,3)&" ＋ "&FIXED(H86,3)&" ＝" -> s ＝ s1 ＋ s2 ＋ s3 ＝ 2.527 ＋ 0.700 ＋ 0.000 ＝
H98: =H48+H62+H86 -> 3.227 | I98: m2
B100: 径深 | C100: =" R ＝ a ／ s ＝ "&FIXED(H95,3)&" ／ "&FIXED(H98,3)&" ＝" -> R ＝ a ／ s ＝ 1.141 ／ 3.227 ＝ | H100: =ROUND(H95/H98,3) -> 0.354 | I100: m2
B102: 流速 | C102: V ＝ 1 ／ n × R2/3 × I1/2
C103: ="＝ 1／"&FIXED(粗度係数,3)&" × "&FIXED(径深,3)&"(^2/3) × "&FIXED(勾配,3)&"^(1/2) ＝" -> ＝ 1／0.013 × 0.354(^2/3) × 0.003^(1/2) ＝ | H103: =ROUND(1/粗度係数*径深^(2/3)*勾配^(1/2),3) -> 2.108 | I103: m／sec
B105: 流量 | C105: =" Q2 ＝ a × V ＝ "&FIXED(通水断面,3)&" × "&FIXED(流速,3)&" ＝" -> Q2 ＝ a × V ＝ 1.141 × 2.108 ＝ | H105: =ROUND(通水断面*流速,3) -> 2.405 | I105: m3／sec
H107: =IF(H105>=設計流出量,"Q2 ≧ Q1 ∴ OK","Q2 ＜ Q1 ＮＯ ") -> Q2 ≧ Q1 ∴ OK
